lending/lending_fUSD_20251020
["ID","MTS","AMOUNT","RATE_DAILY","PERIOD"]
[391904438,1760971838511,-127424.57260428,0.00034292,3]
[391904439,1760971838523,-2688.55100945,0.00034292,3]
[391904440,1760971838534,-29752.05336425,0.00034292,3]
[391904441,1760971838546,-11938.36715156,0.00034292,3]
[391904442,1760971838556,-134532.75443127,0.00034292,3]
[391904443,1760971838568,-1892.25748806,0.00034292,3]
[391904444,1760971838584,-6346.80758099,0.00034292,3]
[391904445,1760971838603,-424.88308538,0.00034292,3]
[391904447,1760971838615,-447.20556288,0.00034292,3]
[391904449,1760971838627,-974.0010031,0.00034292,3]
[391904630,1760971840412,-637.73889772,0.00034292,3]
[391904632,1760971840424,-40882.34831143,0.00034292,3]
[391904635,1760971840435,-10283.29526965,0.00034292,3]
[391904639,1760971840467,-1113.0,0.00034292,3]
[391904641,1760971840478,-26804.86626822,0.00034292,3]
[391904643,1760971840489,-404.8,0.00034292,3]
[391904653,1760971840695,-1550.0,0.00034292,3]
[391904661,1760971843666,-732.37514489,0.00033002,2]
[391904662,1760971843679,-169.62485511,0.00033002,2]
[391904663,1760971843690,-760.54291072,0.00034292,3]
[391904664,1760971843702,-573.81063786,0.00034292,3]
[391904665,1760971843714,-1360.97997575,0.00034292,3]
[391904666,1760971843726,-1469.52118151,0.00034292,3]
[391904667,1760971843737,-702.87272294,0.00034292,3]
[391904668,1760971843748,-659.73388445,0.00034292,3]
[391904669,1760971843759,-469.8687051,0.00034292,3]
[391904670,1760971843770,-397.63979402,0.00034292,3]
[391904671,1760971843786,-4539.22001657,0.00034292,3]
[391904717,1760971846621,-302.0,0.00034292,3]
[391904718,1760971846633,-642.24403196,0.00034292,3]
[391904719,1760971846672,-4696.79250167,0.00034292,3]
[391904720,1760971846722,-716.90671224,0.00034292,3]
[391904721,1760971846772,-406.22948264,0.00034292,3]
[391904722,1760971846819,-662.53723803,0.00034292,3]
[391904769,1760971871895,500.0,0.00014999,2]
[391904770,1760971871984,500.4,0.00014999,2]
[391904771,1760971911042,1011.0,0.00025745,2]
[391904772,1760971911274,1011.0,0.00025745,2]
[391904773,1760971911950,1011.0,0.00025745,2]
[391904774,1760971912586,1011.0,0.00025745,2]
[391904775,1760971913094,1011.0,0.00025745,2]
[391904776,1760971913513,1011.0,0.00025745,2]
[391904777,1760971913744,1011.0,0.00025745,2]
[391904778,1760971914389,1011.0,0.00025745,2]
[391904779,1760971914598,1011.0,0.00025745,2]
[391904780,1760971914808,1011.0,0.00025745,2]
[391904781,1760971925462,151.0,0.0003431,30]
[391904782,1760971926083,151.0,0.0003431,30]
[391904783,1760971928421,509.0,0.00025743,2]
[391904784,1760971928645,509.0,0.00025743,2]
[391904785,1760971929195,500.0,0.0003431,30]
[391904786,1760971929343,509.0,0.00025743,2]
[391904787,1760971929598,509.0,0.00025743,2]
[391904788,1760971929806,500.0,0.0003431,30]
[391904789,1760971929834,509.0,0.00025743,2]
[391904790,1760971930595,500.0,0.0003431,30]
[391904791,1760971930625,509.0,0.00025743,2]
[391904792,1760971930854,509.0,0.00025743,2]
[391904793,1760971931251,500.0,0.0003431,30]
[391904794,1760971931393,509.0,0.00025743,2]
[391904795,1760971931621,509.0,0.00025743,2]
[391904796,1760971931905,500.0,0.0003431,30]
[391904797,1760971932603,500.0,0.0003431,30]
[391904798,1760971933267,500.0,0.0003431,30]
[391904799,1760971934000,500.0,0.0003431,30]
[391904800,1760971934427,334.5472959,0.0003431,30]
[391904801,1760971934499,203.14222053,0.0003431,30]
[391904802,1760971935620,520.0,0.0003431,30]
[391904803,1760971938705,381.6392,0.00028941,2]
[391904804,1760971944506,170.39889296,0.0003431,30]
[391904805,1760971974409,648.0,0.00025738,2]
[391904806,1760971975002,648.0,0.00025738,2]
[391904807,1760971975803,648.0,0.00025738,2]
[391904808,1760971976028,648.0,0.00025738,2]
[391904809,1760971976250,648.0,0.00025738,2]
[391904810,1760971976469,648.0,0.00025738,2]
[391904811,1760971976707,648.0,0.00025738,2]
[391904812,1760971976937,648.0,0.00025738,2]
[391904813,1760971977156,648.0,0.00025738,2]
[391904814,1760971977384,648.0,0.00025738,2]
[391904815,1760971977600,648.0,0.00025738,2]
[391904816,1760971977818,648.0,0.00025738,2]
[391904817,1760971978629,648.0,0.00025738,2]
[391904818,1760971979110,648.0,0.00025738,2]
[391904819,1760971979307,648.0,0.00025738,2]
[391904820,1760971979537,648.0,0.00025738,2]
[391904821,1760971979760,648.0,0.00025738,2]
[391904822,1760971979977,648.0,0.00025738,2]
[391904823,1760971980209,648.0,0.00025738,2]
[391904824,1760971980426,648.0,0.00025738,2]
[391904825,1760971981340,648.0,0.00025738,2]
[391904826,1760971981555,648.0,0.00025738,2]
[391904827,1760971981771,648.0,0.00025738,2]
[391904828,1760971982016,648.0,0.00025738,2]
[391904829,1760971982233,648.0,0.00025738,2]
[391904830,1760971996342,409.0,0.00025735,2]
[391904831,1760971997060,409.0,0.00025735,2]
[391904832,1760971997300,409.0,0.00025735,2]
[391904833,1760971997525,409.0,0.00025735,2]
[391904834,1760971997749,409.0,0.00025735,2]
[391904835,1760971997972,409.0,0.00025735,2]
[391904836,1760971998205,409.0,0.00025735,2]
[391904837,1760971998463,409.0,0.00025735,2]
[391904838,1760971998656,409.0,0.00025735,2]
[391904839,1760971998886,409.0,0.00025735,2]
[391904840,1760971999130,409.0,0.00025735,2]
[391904841,1760971999347,409.0,0.00025735,2]
[391904842,1760971999574,409.0,0.00025735,2]
[391904843,1760971999836,409.0,0.00025735,2]
[391904844,1760972000083,409.0,0.00025735,2]
[391904845,1760972000305,409.0,0.00025735,2]
[391904846,1760972000535,409.0,0.00025735,2]
[391904847,1760972000789,409.0,0.00025735,2]
[391904848,1760972001023,409.0,0.00025735,2]
[391904849,1760972001282,409.0,0.00025735,2]
[391904850,1760972001511,409.0,0.00025735,2]
[391904851,1760972001761,409.0,0.00025735,2]
[391904852,1760972002305,409.0,0.00025735,2]
[391904853,1760972002537,409.0,0.00025735,2]
[391904861,1760972036634,353.0,0.00025731,2]
[391904862,1760972036853,353.0,0.00025731,2]
[391904863,1760972037603,353.0,0.00025731,2]
[391904864,1760972038461,353.0,0.00025731,2]
[391904865,1760972038965,353.0,0.00025731,2]
[391904866,1760972039730,353.0,0.00025731,2]
[391904867,1760972040326,353.0,0.00025731,2]
[391904868,1760972040894,353.0,0.00025731,2]
[391904869,1760972042133,353.0,0.00025731,2]
[391904870,1760972042793,353.0,0.00025731,2]
[391904871,1760972043366,353.0,0.00025731,2]
[391904872,1760972043883,353.0,0.00025731,2]
[391904873,1760972044115,353.0,0.00025731,2]
[391904874,1760972044826,353.0,0.00025731,2]
[391904875,1760972045479,353.0,0.00025731,2]
[391904876,1760972046029,353.0,0.00025731,2]
[391904877,1760972046584,353.0,0.00025731,2]
[391904878,1760972046972,353.0,0.00025731,2]
[391904879,1760972047470,353.0,0.00025731,2]
[391904880,1760972048780,353.0,0.00025731,2]
[391904881,1760972050339,353.0,0.00025731,2]
[391904882,1760972050817,353.0,0.00025731,2]
[391904883,1760972052130,353.0,0.00025731,2]
[391904884,1760972052651,353.0,0.00025731,2]
[391904885,1760972053169,353.0,0.00025731,2]
[391904886,1760972053677,353.0,0.00025731,2]
[391904887,1760972053911,353.0,0.00025731,2]
[391904888,1760972054561,353.0,0.00025731,2]
[391904889,1760972056788,353.0,0.00025731,2]
[391904890,1760972057609,353.0,0.00025731,2]
[391904891,1760972058127,353.0,0.00025731,2]
[391904892,1760972058872,353.0,0.00025731,2]
[391904893,1760972060330,353.0,0.00025731,2]
[391904894,1760972060967,353.0,0.00025731,2]
[391904895,1760972061481,353.0,0.00025731,2]
[391904896,1760972062157,353.0,0.00025731,2]
[391904897,1760972062831,353.0,0.00025731,2]
[391904898,1760972096088,255.0,0.00025723,2]
[391904899,1760972096815,255.0,0.00025723,2]
[391904900,1760972098229,255.0,0.00025723,2]
[391904901,1760972099152,255.0,0.00025723,2]
[391904902,1760972100396,255.0,0.00025723,2]
[391904903,1760972100877,255.0,0.00025723,2]
[391904904,1760972101358,255.0,0.00025723,2]
[391904905,1760972102017,255.0,0.00025723,2]
[391904906,1760972102669,255.0,0.00025723,2]
[391904907,1760972103579,255.0,0.00025723,2]
[391904908,1760972104104,255.0,0.00025723,2]
[391904909,1760972104665,255.0,0.00025723,2]
[391904910,1760972105449,255.0,0.00025723,2]
[391904911,1760972105841,255.0,0.00025723,2]
[391904912,1760972106345,255.0,0.00025723,2]
[391904913,1760972106865,255.0,0.00025723,2]
[391904914,1760972107572,255.0,0.00025723,2]
[391904915,1760972107825,255.0,0.00025723,2]
[391904916,1760972108355,255.0,0.00025723,2]
[391904917,1760972108744,255.0,0.00025723,2]
[391904918,1760972108995,255.0,0.00025723,2]
[391904919,1760972110184,255.0,0.00025723,2]
[391904920,1760972110697,255.0,0.00025723,2]
[391904921,1760972111136,255.0,0.00025723,2]
[391904922,1760972111947,255.0,0.00025723,2]
[391904923,1760972112532,255.0,0.00025723,2]
[391904924,1760972113346,255.0,0.00025723,2]
[391904925,1760972113595,255.0,0.00025723,2]
[391904926,1760972114306,255.0,0.00025723,2]
[391904927,1760972114921,255.0,0.00025723,2]
[391904928,1760972115709,255.0,0.00025723,2]
[391904929,1760972116864,255.0,0.00025723,2]
[391904930,1760972117708,255.0,0.00025723,2]
[391904931,1760972118607,255.0,0.00025723,2]
[391904932,1760972120036,255.0,0.00025723,2]
[391904933,1760972120623,255.0,0.00025723,2]
[391904934,1760972120870,255.0,0.00025723,2]
[391904935,1760972121115,255.0,0.00025723,2]
[391904936,1760972121688,255.0,0.00025723,2]
[391904937,1760972122252,255.0,0.00025723,2]
[391904938,1760972123995,255.0,0.00025723,2]
[391904939,1760972124274,255.0,0.00025723,2]
[391904940,1760972147798,164.0,0.00025716,2]
[391904941,1760972148028,164.0,0.00025716,2]
[391904942,1760972148298,164.0,0.00025716,2]
[391904943,1760972148528,164.0,0.00025716,2]
[391904944,1760972148753,164.0,0.00025716,2]
[391904945,1760972149011,164.0,0.00025716,2]
[391904946,1760972149253,164.0,0.00025716,2]
[391904947,1760972149946,164.0,0.00025716,2]
[391904948,1760972150488,164.0,0.00025716,2]
[391904949,1760972153860,164.0,0.00025716,2]
[391904950,1760972154132,164.0,0.00025716,2]
[391904951,1760972154362,164.0,0.00025716,2]
[391904952,1760972154998,164.0,0.00025716,2]
[391904953,1760972155222,164.0,0.00025716,2]
[391904954,1760972155457,164.0,0.00025716,2]
[391904955,1760972155676,164.0,0.00025716,2]
[391904956,1760972155907,164.0,0.00025716,2]
[391904957,1760972156147,164.0,0.00025716,2]
[391904958,1760972156370,164.0,0.00025716,2]
[391904959,1760972156605,164.0,0.00025716,2]
[391904960,1760972157229,164.0,0.00025716,2]
[391904961,1760972157451,164.0,0.00025716,2]
[391904962,1760972157668,164.0,0.00025716,2]
[391904963,1760972157914,164.0,0.00025716,2]
[391904964,1760972158125,164.0,0.00025716,2]
[391904965,1760972158351,164.0,0.00025716,2]
[391904966,1760972158558,164.0,0.00025716,2]
[391904967,1760972158792,164.0,0.00025716,2]
[391904968,1760972159397,164.0,0.00025716,2]
[391904969,1760972159623,164.0,0.00025716,2]
[391904970,1760972160338,164.0,0.00025716,2]
[391904971,1760972160535,164.0,0.00025716,2]
[391904972,1760972161250,164.0,0.00025716,2]
[391904973,1760972161471,164.0,0.00025716,2]
[391904974,1760972161685,164.0,0.00025716,2]
[391904975,1760972161900,164.0,0.00025716,2]
[391904976,1760972162117,164.0,0.00025716,2]
[391904977,1760972162338,164.0,0.00025716,2]
[391904978,1760972162569,164.0,0.00025716,2]
[391904979,1760972163197,164.0,0.00025716,2]
[391904980,1760972163471,164.0,0.00025716,2]
[391904981,1760972163690,164.0,0.00025716,2]
[391904982,1760972163944,164.0,0.00025716,2]
[391904983,1760972164161,164.0,0.00025716,2]
[391904984,1760972164374,164.0,0.00025716,2]
[391904985,1760972164603,164.0,0.00025716,2]
[391904986,1760972164822,164.0,0.00025716,2]
[391904987,1760972165898,164.0,0.00025716,2]
[391904988,1760972166127,164.0,0.00025716,2]
[391904989,1760972166763,164.0,0.00025716,2]
[391904990,1760972167006,164.0,0.00025716,2]
[391904992,1760972181945,343.0,0.00025712,2]
[391904993,1760972182179,343.0,0.00025712,2]
[391904994,1760972182409,343.0,0.00025712,2]
[391904995,1760972182653,343.0,0.00025712,2]
[391904996,1760972182889,343.0,0.00025712,2]
[391904997,1760972183489,343.0,0.00025712,2]
[391904998,1760972183733,343.0,0.00025712,2]
[391904999,1760972183977,343.0,0.00025712,2]
[391905000,1760972184224,343.0,0.00025712,2]
[391905001,1760972184465,343.0,0.00025712,2]
[391905002,1760972184697,343.0,0.00025712,2]
[391905003,1760972184925,343.0,0.00025712,2]
[391905004,1760972185149,343.0,0.00025712,2]
[391905005,1760972185392,343.0,0.00025712,2]
[391905006,1760972186072,343.0,0.00025712,2]
[391905007,1760972186319,343.0,0.00025712,2]
[391905008,1760972186931,343.0,0.00025712,2]
[391905009,1760972187159,343.0,0.00025712,2]
[391905010,1760972187387,343.0,0.00025712,2]
[391905011,1760972187617,343.0,0.00025712,2]
[391905012,1760972187860,343.0,0.00025712,2]
[391905013,1760972188459,343.0,0.00025712,2]
[391905014,1760972188679,343.0,0.00025712,2]
[391905015,1760972188919,343.0,0.00025712,2]
[391905016,1760972189298,343.0,0.00025712,2]
[391905017,1760972189382,343.0,0.00025712,2]
[391905018,1760972189622,343.0,0.00025712,2]
[391905019,1760972189858,343.0,0.00025712,2]
[391905020,1760972190501,343.0,0.00025712,2]
[391905021,1760972190726,343.0,0.00025712,2]
[391905022,1760972190977,343.0,0.00025712,2]
[391905023,1760972191202,343.0,0.00025712,2]
[391905024,1760972191495,343.0,0.00025712,2]
[391905025,1760972191684,343.0,0.00025712,2]
[391905026,1760972191922,343.0,0.00025712,2]
[391905027,1760972192158,67.5569138,0.00025712,2]
[391905028,1760972233310,201.12765535,0.0003431,30]
[391905029,1760972235208,250.0,0.0003431,30]
[391905030,1760972235867,250.0,0.0003431,30]
[391905031,1760972236168,192.21256103,0.0003431,30]
[391905032,1760972236529,250.0,0.0003431,30]
[391905033,1760972237219,250.0,0.0003431,30]
[391905034,1760972237973,250.0,0.0003431,30]
[391905035,1760972238728,250.0,0.0003431,30]
[391905036,1760972239394,250.0,0.0003431,30]
[391905037,1760972240063,250.0,0.0003431,30]
[391905040,1760972283181,423.6303643,0.00028173,120]
[391905041,1760972284725,195.0,0.00028173,120]
[391905052,1760972407380,300.0,0.00028173,120]
[391905098,1760972755301,150.0,0.00034312,30]
[391905099,1760972755965,150.0,0.00034312,30]
[391905100,1760972756819,150.0,0.00034312,30]
[391905107,1760972825573,150.0,0.00034312,30]
[391905108,1760972826477,150.0,0.00034312,30]
[391905114,1760972887903,150.0,0.00034312,30]
[391905115,1760972888579,150.0,0.00034312,30]
[391905117,1760972889850,150.0,0.00034312,30]
[391905139,1760973031514,-230.04729185,0.00025411,2]
[391905140,1760973031524,-1323.22937991,0.00025511,3]
[391905141,1760973031533,-246.09928107,0.00025511,2]
[391905142,1760973031543,-210.67313517,0.0002561,2]
[391905143,1760973031658,-989.32686483,0.0002561,2]
[391905144,1760973031668,-1200.0,0.00025611,2]
[391905145,1760973031678,-300.0,0.00025611,2]
[391905146,1760973031689,-300.0,0.00025611,2]
[391905147,1760973031698,-500.0,0.00025612,2]
[391905148,1760973031708,-500.0,0.00025612,2]
[391905149,1760973031720,-487.26438769,0.00025612,2]
[391905150,1760973031730,-150.0,0.00025612,2]
[391905151,1760973031740,-1323.2293799,0.0002562,3]
[391905152,1760973031749,-172.78195023,0.00025712,2]
[391905153,1760973031759,-296.32273459,0.00025712,2]
[391905154,1760973031770,-300.0,0.00025719,2]
[391905155,1760973031779,-270.0,0.0002572,2]
[391905156,1760973031789,-270.0,0.0002572,2]
[391905157,1760973031798,-270.0,0.0002572,2]
[391905158,1760973031809,-270.0,0.0002572,2]
[391905159,1760973031819,-270.0,0.0002572,2]
[391905160,1760973031828,-270.0,0.0002572,2]
[391905161,1760973031838,-270.0,0.0002572,2]
[391905162,1760973031848,-270.0,0.0002572,2]
[391905163,1760973031857,-270.0,0.0002572,2]
[391905165,1760973031867,-270.0,0.0002572,2]
[391905168,1760973031876,-270.0,0.0002572,2]
[391905170,1760973031886,-270.0,0.0002572,2]
[391905172,1760973031895,-270.0,0.0002572,2]
[391905173,1760973031904,-171.0,0.00025722,2]
[391905174,1760973031914,-171.0,0.00025722,2]
[391905175,1760973031924,-171.0,0.00025722,2]
[391905176,1760973031933,-171.0,0.00025722,2]
[391905177,1760973031943,-171.0,0.00025722,2]
[391905179,1760973031952,-171.0,0.00025722,2]
[391905181,1760973031962,-171.0,0.00025722,2]
[391905183,1760973031970,-171.0,0.00025722,2]
[391905185,1760973031980,-171.0,0.00025722,2]
[391905187,1760973031989,-171.0,0.00025722,2]
[391905190,1760973031998,-171.0,0.00025722,2]
[391905193,1760973032007,-171.0,0.00025722,2]
[391905195,1760973032016,-171.0,0.00025722,2]
[391905197,1760973032027,-195.51,0.00025727,2]
[391905199,1760973032036,-3647.85,0.00025727,2]
[391905201,1760973032045,-9999.99,0.00025727,2]
[391905203,1760973032054,-150.99,0.00025727,2]
[391905205,1760973032063,-150.99,0.00025727,2]
[391905207,1760973032073,-9999.99,0.00025727,2]
[391905209,1760973032082,-299.99,0.00025727,7]
[391905211,1760973032092,-339.0,0.00025727,2]
[391905213,1760973032101,-339.0,0.00025727,2]
[391905215,1760973032111,-339.0,0.00025727,2]
[391905217,1760973032120,-339.0,0.00025727,2]
[391905219,1760973032130,-339.0,0.00025727,2]
[391905221,1760973032140,-339.0,0.00025727,2]
[391905223,1760973032149,-339.0,0.00025727,2]
[391905225,1760973032159,-339.0,0.00025727,2]
[391905227,1760973032169,-339.0,0.00025727,2]
[391905229,1760973032178,-339.0,0.00025727,2]
[391905230,1760973032188,-339.0,0.00025727,2]
[391905231,1760973032197,-339.0,0.00025727,2]
[391905232,1760973032207,-153.0,0.00025729,2]
[391905233,1760973032217,-153.0,0.00025729,2]
[391905234,1760973032227,-153.0,0.00025729,2]
[391905235,1760973032236,-153.0,0.00025729,2]
[391905236,1760973032246,-153.0,0.00025729,2]
[391905237,1760973032256,-153.0,0.00025729,2]
[391905238,1760973032266,-153.0,0.00025729,2]
[391905239,1760973032278,-153.0,0.00025729,2]
[391905240,1760973032288,-153.0,0.00025729,2]
[391905241,1760973032298,-153.0,0.00025729,2]
[391905242,1760973032308,-153.0,0.00025729,2]
[391905243,1760973032318,-153.0,0.00025729,2]
[391905244,1760973032327,-153.0,0.00025729,2]
[391905245,1760973032337,-502.74837759,0.00025773,2]
[391905246,1760973032347,-500.0,0.00025773,2]
[391905247,1760973032357,-500.0,0.00025773,2]
[391905248,1760973032366,-195.51,0.00026001,2]
[391905249,1760973032376,-195.53891154,0.00026275,2]
[391905250,1760973032386,-698.0,0.00027728,2]
[391905251,1760973032395,-420.0,0.00027728,2]
[391905252,1760973032405,-420.0,0.00027728,2]
[391905253,1760973032414,-1680.0,0.00027851,2]
[391905254,1760973032427,-438.19318341,0.00029354,2]
[391905255,1760973032437,-500.0,0.0002947,7]
[391905256,1760973032447,-500.0,0.00029595,7]
[391905257,1760973032457,-151.0,0.00029599,2]
[391905258,1760973032467,-226.02260155,0.00029599,2]
[391905259,1760973032476,-500.0,0.00029629,7]
[391905260,1760973032486,-166.66,0.0002976,30]
[391905261,1760973032496,-2751.0,0.00029776,2]
[391905262,1760973032507,-563.54518573,0.00029955,2]
[391905263,1760973032517,-300.972,0.00029955,24]
[391905264,1760973032527,-587.0,0.0003002,2]
[391905265,1760973032537,-200.0,0.00030063,2]
[391905266,1760973032548,-500.0,0.00030097,7]
[391905267,1760973032559,-151.0,0.00030137,30]
[391905268,1760973032568,-500.0,0.00030173,7]
[391905269,1760973032579,-500.0,0.00030275,7]
[391905270,1760973032589,-1276.0,0.00030289,2]
[391905271,1760973032602,-500.0,0.00030347,7]
[391905272,1760973032612,-166.66,0.00030386,30]
[391905273,1760973032621,-500.0,0.00030471,7]
[391905274,1760973032631,-250.0,0.00030491,7]
[391905275,1760973032641,-5000.0,0.00030719,2]
[391905276,1760973032651,-500.0,0.00030793,7]
[391905277,1760973032660,-500.0,0.000308,7]
[391905278,1760973032670,-500.0,0.0003083,7]
[391905279,1760973032680,-168.0,0.00030831,2]
[391905280,1760973032690,-150.0,0.00030871,7]
[391905281,1760973032700,-150.0,0.00030871,7]
[391905282,1760973032710,-165.3064912,0.00030871,7]
[391905283,1760973032721,-666.0,0.0003089,3]
[391905284,1760973032730,-160.0,0.00031,120]
[391905285,1760973032740,-160.0,0.00031,120]
[391905286,1760973032749,-166.66,0.00031013,30]
[391905287,1760973032759,-500.0,0.0003102,7]
[391905288,1760973032769,-500.0,0.00031045,7]
[391905289,1760973032778,-181.86183994,0.00031049,7]
[391905290,1760973032788,-500.0,0.00031054,7]
[391905291,1760973032798,-150.0,0.00031089,2]
[391905292,1760973032807,-150.0,0.00031089,120]
[391905293,1760973032818,-500.0,0.00031109,7]
[391905294,1760973032827,-500.0,0.00031253,7]
[391905295,1760973032837,-500.0,0.00031343,7]
[391905296,1760973032996,-500.0,0.0003136,7]
[391905297,1760973033008,-170.03,0.00031374,2]
[391905298,1760973033019,-500.0,0.00031377,7]
[391905299,1760973033029,-1000.0,0.00031382,2]
[391905300,1760973033039,-500.0,0.00031433,7]
[391905301,1760973033048,-500.0,0.00031549,7]
[391905302,1760973033059,-168.0,0.00031591,2]
[391905303,1760973033069,-500.0,0.00031617,7]
[391905304,1760973033080,-500.0,0.00031628,7]
[391905305,1760973033091,-166.66,0.00031639,30]
[391905306,1760973033101,-500.0,0.00031939,7]
[391905307,1760973033112,-500.0,0.00031949,7]
[391905308,1760973033123,-188.95,0.00031984,2]
[391905309,1760973033134,-500.0,0.00032044,7]
[391905310,1760973033144,-500.0,0.00032046,7]
[391905311,1760973033154,-168.0,0.00032075,2]
[391905312,1760973033164,-2615.0,0.00032077,2]
[391905313,1760973033174,-500.0,0.00032088,7]
[391905314,1760973033183,-500.0,0.00032103,7]
[391905315,1760973033193,-300.0,0.00032119,2]
[391905316,1760973033202,-500.0,0.00032134,7]
[391905317,1760973033212,-500.0,0.00032135,7]
[391905318,1760973033221,-500.0,0.00032159,7]
[391905319,1760973033230,-500.0,0.00032235,7]
[391905320,1760973033240,-166.66,0.00032266,30]
[391905321,1760973033249,-500.0,0.00032305,7]
[391905322,1760973033259,-197.0,0.00032315,2]
[391905323,1760973033269,-500.0,0.00032417,7]
[391905324,1760973033278,-500.0,0.00032435,7]
[391905325,1760973033288,-500.0,0.00032444,8]
[391905326,1760973033298,-500.0,0.00032444,8]
[391905327,1760973033308,-500.0,0.0003247,7]
[391905328,1760973033317,-264.0,0.00032501,2]
[391905329,1760973033326,-500.0,0.00032506,7]
[391905330,1760973033336,-500.0,0.00032606,7]
[391905331,1760973033345,-500.0,0.00032626,7]
[391905332,1760973033355,-500.0,0.0003275,7]
[391905333,1760973033365,-500.0,0.00032753,7]
[391905334,1760973033375,-500.0,0.00032854,7]
[391905335,1760973033384,-166.66,0.00032892,30]
[391905336,1760973033395,-500.0,0.00032894,7]
[391905337,1760973033405,-500.0,0.00033123,7]
[391905338,1760973033415,-500.0,0.00033266,7]
[391905339,1760973033425,-197.0,0.00033269,2]
[391905340,1760973033434,-860.12635103,0.00033271,2]
[391905341,1760973033443,-150.0,0.00033298,2]
[391905342,1760973033452,-197.0,0.0003333,2]
[391905343,1760973033462,-408.27831683,0.00033357,7]
[391905344,1760973033471,-150.0,0.00033425,2]
[391905345,1760973033480,-150.0,0.00033425,2]
[391905346,1760973033490,-150.0,0.00033425,2]
[391905347,1760973033500,-150.99026666,0.00033425,2]
[391905348,1760973033510,-150.17523028,0.00033425,2]
[391905349,1760973033519,-150.0,0.00033425,2]
[391905350,1760973033530,-150.0,0.00033425,2]
[391905351,1760973033539,-150.0,0.00033425,2]
[391905352,1760973033549,-154.21978894,0.00033425,2]
[391905353,1760973033559,-250.0,0.00033425,2]
[391905354,1760973033568,-250.0,0.00033425,2]
[391905355,1760973033578,-150.0,0.00033425,2]
[391905356,1760973033588,-150.0,0.00033425,2]
[391905357,1760973033599,-500.0,0.00033425,2]
[391905358,1760973033610,-203.8435527,0.00033425,2]
[391905359,1760973033620,-150.0,0.0003348,2]
[391905360,1760973033629,-150.0,0.0003348,2]
[391905361,1760973033639,-150.0,0.0003348,2]
[391905362,1760973033650,-150.0,0.0003348,2]
[391905363,1760973033659,-150.0,0.0003348,2]
[391905364,1760973033669,-150.0,0.0003348,2]